[Event "Titled Tuesday Blitz April 05 Late 2022"]
[White "Johnson, Ben"]
[Black "Soysal, Serkan"]
[WhiteFideId "2010917"]
[BlackFideId "6349250"]
[WhiteElo "2156"]
[BlackElo "2440"]
[Result "0-1"]
[Round "04"]
[TimeControl "180+1"]
[Date "2022.04.06"]
[WhiteClock "0:00:01"]
[BlackClock "0:00:06"]

1. Nf3 {[%clk 0:03:00]}  d5 {[%clk 0:02:58]} 2. e3 {[%clk 0:03:00]}  Nc6 {[%clk 0:02:54]} 3. d4 {[%clk 0:02:59]}  Bg4 {[%clk 0:02:52]} 4. Bb5 {[%clk 0:02:56]}  Qd6 {[%clk 0:02:48]} 5. h3 {[%clk 0:02:55]}  Bxf3 {[%clk 0:02:45]} 6. Qxf3 {[%clk 0:02:55]}  Nf6 {[%clk 0:02:44]} 7. O-O {[%clk 0:02:52]}  a6 {[%clk 0:02:43]} 8. Bxc6+ {[%clk 0:02:25]}  Qxc6 {[%clk 0:02:43]} 9. Nc3 {[%clk 0:02:01]}  b5 {[%clk 0:02:35]} 10. a3 {[%clk 0:01:59]}  e6 {[%clk 0:02:35]} 11. Re1 {[%clk 0:01:58]}  Rd8 {[%clk 0:02:31]} 12. Bd2 {[%clk 0:01:46]}  Bd6 {[%clk 0:02:23]} 13. Rad1 {[%clk 0:01:44]}  e5 {[%clk 0:02:23]} 14. dxe5 {[%clk 0:01:39]}  Bxe5 {[%clk 0:02:23]} 15. Qf5 {[%clk 0:01:36]}  Qe6 {[%clk 0:02:20]} 16. Qxe6+ {[%clk 0:01:32]}  fxe6 {[%clk 0:02:21]} 17. f4 {[%clk 0:01:29]}  Bd6 {[%clk 0:02:02]} 18. g3 {[%clk 0:01:24]}  O-O {[%clk 0:01:51]} 19. e4 {[%clk 0:01:12]}  Bc5+ {[%clk 0:01:44]} 20. Kg2 {[%clk 0:01:08]}  c6 {[%clk 0:01:21]} 21. exd5 {[%clk 0:00:56]}  exd5 {[%clk 0:01:22]} 22. Be3 {[%clk 0:00:53]}  Bxe3 {[%clk 0:01:08]} 23. Rxe3 {[%clk 0:00:54]}  d4 {[%clk 0:01:08]} 24. Red3 {[%clk 0:00:54]}  c5 {[%clk 0:01:09]} 25. Ne2 {[%clk 0:00:49]}  Rde8 {[%clk 0:01:03]} 26. Kf3 {[%clk 0:00:39]}  Nd5 {[%clk 0:00:49]} 27. b4 {[%clk 0:00:20]}  cxb4 {[%clk 0:00:39]} 28. Rxd4 {[%clk 0:00:18]}  Rxe2 {[%clk 0:00:39]} 29. Rxd5 {[%clk 0:00:12]}  Rxc2 {[%clk 0:00:39]} 30. axb4 {[%clk 0:00:11]}  Rfc8 {[%clk 0:00:34]} 31. Rd7 {[%clk 0:00:10]}  R2c3+ {[%clk 0:00:31]} 32. Kg4 {[%clk 0:00:10]}  R3c7 {[%clk 0:00:28]} 33. R7d6 {[%clk 0:00:06]}  Ra7 {[%clk 0:00:24]} 34. Rb6 {[%clk 0:00:02]}  h6 {[%clk 0:00:20]} 35. Rdd6 {[%clk 0:00:02]}  Rca8 {[%clk 0:00:20]} 36. f5 {[%clk 0:00:01]}  Kh7 {[%clk 0:00:20]} 37. Kh5 {[%clk 0:00:01]}  a5 {[%clk 0:00:18]} 38. g4 {[%clk 0:00:02]}  axb4 {[%clk 0:00:19]} 39. g5 {[%clk 0:00:02]}  hxg5 {[%clk 0:00:19]} 40. Kxg5 {[%clk 0:00:03]}  Rf7 {[%clk 0:00:15]} 41. Rxb5 {[%clk 0:00:02]}  Ra3 {[%clk 0:00:14]} 42. Rd4 {[%clk 0:00:03]}  Rxh3 {[%clk 0:00:14]} 43. Rdxb4 {[%clk 0:00:03]}  Rg3+ {[%clk 0:00:12]} 44. Rg4 {[%clk 0:00:03]}  Rf3 {[%clk 0:00:12]} 45. Rh4+ {[%clk 0:00:03]}  Kg8 {[%clk 0:00:12]} 46. Rhb4 {[%clk 0:00:03]}  Rg3+ {[%clk 0:00:11]} 47. Rg4 {[%clk 0:00:03]}  Re3 {[%clk 0:00:11]} 48. Rc4 {[%clk 0:00:03]}  Rf8 {[%clk 0:00:10]} 49. Rc7 {[%clk 0:00:03]}  Rg3+ {[%clk 0:00:10]} 50. Kf4 {[%clk 0:00:03]}  Rg1 {[%clk 0:00:10]} 51. Ke5 {[%clk 0:00:03]}  Rg4 {[%clk 0:00:08]} 52. Rbb7 {[%clk 0:00:01]}  Rg5 {[%clk 0:00:07]} 53. Ke6 {[%clk 0:00:01]}  Rf6+ {[%clk 0:00:06]} 0-1


[Site "https://www.chess.com"]

[Event "Titled Tuesday Blitz April 05 Late 2022"]
[White "Khanin, Semen"]
[Black "Polok, Kacper"]
[WhiteFideId "4111990"]
[BlackFideId "1137158"]
[WhiteElo "2754"]
[BlackElo "2385"]
[Result "1-0"]
[Round "04"]
[TimeControl "180+1"]
[Date "2022.04.06"]
[WhiteClock "0:02:06"]
[BlackClock "0:01:43"]

1. e4 {[%clk 0:03:00]}  e6 {[%clk 0:02:59]} 2. d4 {[%clk 0:03:00]}  d5 {[%clk 0:02:59]} 3. e5 {[%clk 0:03:00]}  c5 {[%clk 0:02:59]} 4. c3 {[%clk 0:03:01]}  Nc6 {[%clk 0:03:00]} 5. Nf3 {[%clk 0:03:02]}  Bd7 {[%clk 0:03:01]} 6. Be2 {[%clk 0:03:01]}  f6 {[%clk 0:03:00]} 7. O-O {[%clk 0:03:00]}  fxe5 {[%clk 0:03:01]} 8. Nxe5 {[%clk 0:03:00]}  Nxe5 {[%clk 0:03:01]} 9. dxe5 {[%clk 0:03:01]}  Qc7 {[%clk 0:03:02]} 10. Re1 {[%clk 0:03:01]}  O-O-O {[%clk 0:03:02]} 11. c4 {[%clk 0:03:01]}  d4 {[%clk 0:03:01]} 12. Bd3 {[%clk 0:02:54]}  Bc6 {[%clk 0:02:56]} 13. b4 {[%clk 0:02:53]}  cxb4 {[%clk 0:02:50]} 14. a3 {[%clk 0:02:53]}  h5 {[%clk 0:02:42]} 15. axb4 {[%clk 0:02:52]}  Bxb4 {[%clk 0:02:42]} 16. Rxa7 {[%clk 0:02:44]}  Kb8 {[%clk 0:02:41]} 17. Ra1 {[%clk 0:02:41]}  Bxe1 {[%clk 0:02:34]} 18. Qxe1 {[%clk 0:02:42]}  h4 {[%clk 0:02:35]} 19. h3 {[%clk 0:02:39]}  Ne7 {[%clk 0:02:28]} 20. Na3 {[%clk 0:02:38]}  Nf5 {[%clk 0:02:28]} 21. Bd2 {[%clk 0:02:32]}  b6 {[%clk 0:02:09]} 22. c5 {[%clk 0:02:30]}  bxc5 {[%clk 0:02:03]} 23. Ba5 {[%clk 0:02:20]}  Qa7 {[%clk 0:02:02]} 24. Nb5 {[%clk 0:02:08]}  Bxb5 {[%clk 0:01:53]} 25. Bxb5 {[%clk 0:02:08]}  Kc8 {[%clk 0:01:48]} 26. Bxd8 {[%clk 0:02:06]}  Qb7 {[%clk 0:01:43]} 27. Ba6 {[%clk 0:02:06]} 1-0


[Site "https://www.chess.com"]

[Event "Titled Tuesday Blitz April 05 Late 2022"]
[White "Kobalia, Mikhail"]
[Black "Melkumyan, Hrant"]
[WhiteFideId "4119150"]
[BlackFideId "13302485"]
[WhiteElo "2667"]
[BlackElo "2604"]
[Result "1-0"]
[Round "04"]
[TimeControl "180+1"]
[Date "2022.04.05"]
[WhiteClock "0:00:11"]
[BlackClock "0:00:02"]

1. e4 {[%clk 0:03:00]}  c6 {[%clk 0:03:00]} 2. d4 {[%clk 0:03:00]}  d5 {[%clk 0:03:01]} 3. exd5 {[%clk 0:03:00]}  cxd5 {[%clk 0:03:01]} 4. Bd3 {[%clk 0:03:01]}  Nf6 {[%clk 0:03:02]} 5. c3 {[%clk 0:02:59]}  Nc6 {[%clk 0:03:01]} 6. Bf4 {[%clk 0:02:58]}  g6 {[%clk 0:03:02]} 7. Nd2 {[%clk 0:02:56]}  Bf5 {[%clk 0:03:02]} 8. Bxf5 {[%clk 0:02:55]}  gxf5 {[%clk 0:03:03]} 9. Ngf3 {[%clk 0:02:52]}  e6 {[%clk 0:03:03]} 10. O-O {[%clk 0:02:44]}  Bd6 {[%clk 0:03:03]} 11. Bxd6 {[%clk 0:02:44]}  Qxd6 {[%clk 0:03:04]} 12. Nb3 {[%clk 0:02:44]}  b6 {[%clk 0:02:54]} 13. Nc1 {[%clk 0:02:43]}  O-O {[%clk 0:02:53]} 14. Nd3 {[%clk 0:02:43]}  Nd7 {[%clk 0:02:45]} 15. Qd2 {[%clk 0:02:41]}  Kh8 {[%clk 0:02:44]} 16. Rae1 {[%clk 0:02:41]}  Rg8 {[%clk 0:02:44]} 17. Re3 {[%clk 0:02:30]}  Rg4 {[%clk 0:02:43]} 18. Kh1 {[%clk 0:02:06]}  Rag8 {[%clk 0:02:43]} 19. g3 {[%clk 0:02:07]}  R4g7 {[%clk 0:02:34]} 20. b4 {[%clk 0:02:05]}  Nf6 {[%clk 0:02:30]} 21. Nfe5 {[%clk 0:02:01]}  Ne4 {[%clk 0:02:25]} 22. Qe1 {[%clk 0:02:01]}  Ne7 {[%clk 0:02:19]} 23. f3 {[%clk 0:01:54]}  Nf6 {[%clk 0:02:15]} 24. a4 {[%clk 0:01:48]}  Qc7 {[%clk 0:02:15]} 25. Nf4 {[%clk 0:01:45]}  Nc8 {[%clk 0:02:09]} 26. Qe2 {[%clk 0:01:25]}  Nd6 {[%clk 0:02:07]} 27. Ra1 {[%clk 0:01:22]}  a5 {[%clk 0:02:05]} 28. bxa5 {[%clk 0:01:15]}  bxa5 {[%clk 0:02:04]} 29. Qa6 {[%clk 0:01:15]}  Rb8 {[%clk 0:01:59]} 30. Ra2 {[%clk 0:01:09]}  Nfe8 {[%clk 0:01:51]} 31. Kg2 {[%clk 0:00:58]}  Rb6 {[%clk 0:01:47]} 32. Qe2 {[%clk 0:00:51]}  Qb7 {[%clk 0:01:42]} 33. Qf1 {[%clk 0:00:43]}  Nf6 {[%clk 0:01:31]} 34. Ree2 {[%clk 0:00:42]}  Rg8 {[%clk 0:01:19]} 35. Qc1 {[%clk 0:00:41]}  Rb8 {[%clk 0:01:18]} 36. Qe3 {[%clk 0:00:36]}  Rb1 {[%clk 0:01:14]} 37. Nh3 {[%clk 0:00:31]}  Ng8 {[%clk 0:00:53]} 38. Qf4 {[%clk 0:00:22]}  Qe7 {[%clk 0:00:49]} 39. Nc6 {[%clk 0:00:21]}  Qc7 {[%clk 0:00:19]} 40. Nxb8 {[%clk 0:00:21]}  Rxb8 {[%clk 0:00:17]} 41. Qe5+ {[%clk 0:00:21]}  f6 {[%clk 0:00:16]} 42. Qxe6 {[%clk 0:00:22]}  Rb1 {[%clk 0:00:12]} 43. Rab2 {[%clk 0:00:20]}  Rc1 {[%clk 0:00:10]} 44. Nf4 {[%clk 0:00:18]}  Nc4 {[%clk 0:00:07]} 45. Rb5 {[%clk 0:00:14]}  Ra1 {[%clk 0:00:02]} 46. Rc5 {[%clk 0:00:13]}  Qb7 {[%clk 0:00:02]} 47. Rc8 {[%clk 0:00:13]}  Qg7 {[%clk 0:00:02]} 48. Nh5 {[%clk 0:00:11]}  Qg6 {[%clk 0:00:02]} 49. Nxf6 {[%clk 0:00:11]} 1-0


[Site "https://www.chess.com"]

[Event "Titled Tuesday Blitz April 05 Late 2022"]
[White "Koellner, Ruben Gideon"]
[Black "Tristan, Leonardo"]
[WhiteFideId "12993093"]
[BlackFideId "113816"]
[WhiteElo "2561"]
[BlackElo "2404"]
[Result "0-1"]
[Round "04"]
[TimeControl "180+1"]
[Date "2022.04.05"]
[WhiteClock "0:00:46"]
[BlackClock "0:00:56"]

1. d4 {[%clk 0:03:00]}  d5 {[%clk 0:03:00]} 2. Bf4 {[%clk 0:02:59]}  Nf6 {[%clk 0:03:00]} 3. e3 {[%clk 0:03:00]}  e6 {[%clk 0:03:00]} 4. Nd2 {[%clk 0:03:00]}  Bd6 {[%clk 0:03:01]} 5. Bg3 {[%clk 0:03:00]}  O-O {[%clk 0:03:01]} 6. Bd3 {[%clk 0:03:00]}  c5 {[%clk 0:03:01]} 7. c3 {[%clk 0:03:01]}  Qc7 {[%clk 0:03:02]} 8. Bxd6 {[%clk 0:03:00]}  Qxd6 {[%clk 0:03:02]} 9. f4 {[%clk 0:03:01]}  cxd4 {[%clk 0:03:00]} 10. cxd4 {[%clk 0:03:00]}  Nc6 {[%clk 0:03:01]} 11. a3 {[%clk 0:03:00]}  Bd7 {[%clk 0:02:51]} 12. Ngf3 {[%clk 0:03:00]}  Ng4 {[%clk 0:02:51]} 13. Qe2 {[%clk 0:03:00]}  f6 {[%clk 0:02:29]} 14. h3 {[%clk 0:02:55]}  Nh6 {[%clk 0:02:29]} 15. g4 {[%clk 0:02:55]}  e5 {[%clk 0:02:26]} 16. g5 {[%clk 0:02:47]}  Nf5 {[%clk 0:01:42]} 17. Bxf5 {[%clk 0:02:40]}  Bxf5 {[%clk 0:01:42]} 18. gxf6 {[%clk 0:02:40]}  exd4 {[%clk 0:01:27]} 19. exd4 {[%clk 0:01:56]}  Nxd4 {[%clk 0:01:21]} 20. Nxd4 {[%clk 0:01:51]}  Rfe8 {[%clk 0:01:21]} 21. Nxf5 {[%clk 0:01:46]}  Rxe2+ {[%clk 0:01:21]} 22. Kxe2 {[%clk 0:01:47]}  Qe6+ {[%clk 0:01:22]} 23. Ne3 {[%clk 0:01:08]}  d4 {[%clk 0:01:22]} 24. Nf1 {[%clk 0:01:03]}  dxe3 {[%clk 0:01:16]} 25. fxg7 {[%clk 0:01:02]}  Qc4+ {[%clk 0:01:13]} 26. Kxe3 {[%clk 0:00:54]}  Re8+ {[%clk 0:01:13]} 27. Kf2 {[%clk 0:00:53]}  Re2+ {[%clk 0:01:09]} 28. Kg3 {[%clk 0:00:53]}  Qd3+ {[%clk 0:01:05]} 29. Kh4 {[%clk 0:00:50]}  Rg2 {[%clk 0:00:54]} 30. Rh2 {[%clk 0:00:45]}  Qd8+ {[%clk 0:00:53]} 31. Kh5 {[%clk 0:00:44]}  Qe8+ {[%clk 0:00:53]} 32. Kh4 {[%clk 0:00:45]}  Qe7+ {[%clk 0:00:54]} 33. Kh5 {[%clk 0:00:45]}  Qf7+ {[%clk 0:00:54]} 34. Kh4 {[%clk 0:00:46]}  Qf6+ {[%clk 0:00:55]} 35. Kh5 {[%clk 0:00:46]}  Qg6+ {[%clk 0:00:55]} 36. Kh4 {[%clk 0:00:46]}  Qh6# {[%clk 0:00:56]} 0-1


[Site "https://www.chess.com"]

[Event "Titled Tuesday Blitz April 05 Late 2022"]
[White "Kollars, Dmitrij"]
[Black "Arabidze, Meri"]
[WhiteFideId "12909572"]
[BlackFideId "13604040"]
[WhiteElo "2584"]
[BlackElo "2335"]
[Result "1-0"]
[Round "04"]
[TimeControl "180+1"]
[Date "2022.04.05"]
[WhiteClock "0:01:23"]
[BlackClock "0:00:11"]

1. Nf3 {[%clk 0:03:00]}  d5 {[%clk 0:02:55]} 2. e3 {[%clk 0:03:00]}  Nf6 {[%clk 0:02:54]} 3. c4 {[%clk 0:03:00]}  e6 {[%clk 0:02:55]} 4. b3 {[%clk 0:03:00]}  c5 {[%clk 0:02:55]} 5. cxd5 {[%clk 0:03:00]}  exd5 {[%clk 0:02:54]} 6. Bb5+ {[%clk 0:03:01]}  Nc6 {[%clk 0:02:54]} 7. Bb2 {[%clk 0:03:00]}  Bd6 {[%clk 0:02:53]} 8. d4 {[%clk 0:02:59]}  O-O {[%clk 0:02:37]} 9. dxc5 {[%clk 0:02:59]}  Bxc5 {[%clk 0:02:37]} 10. O-O {[%clk 0:03:00]}  Bg4 {[%clk 0:02:33]} 11. Nbd2 {[%clk 0:02:54]}  Rc8 {[%clk 0:02:30]} 12. Rc1 {[%clk 0:02:50]}  Bd6 {[%clk 0:02:30]} 13. h3 {[%clk 0:02:43]}  Bh5 {[%clk 0:02:29]} 14. Be2 {[%clk 0:02:22]}  Ne4 {[%clk 0:02:20]} 15. Nxe4 {[%clk 0:02:14]}  dxe4 {[%clk 0:02:20]} 16. Nd4 {[%clk 0:02:14]}  Bxe2 {[%clk 0:02:14]} 17. Qxe2 {[%clk 0:02:15]}  Nxd4 {[%clk 0:02:12]} 18. Bxd4 {[%clk 0:02:16]}  f5 {[%clk 0:01:16]} 19. Bxa7 {[%clk 0:02:03]}  Be5 {[%clk 0:00:51]} 20. Qb5 {[%clk 0:01:57]}  Rxc1 {[%clk 0:00:37]} 21. Rxc1 {[%clk 0:01:58]}  Qf6 {[%clk 0:00:37]} 22. Qxb7 {[%clk 0:01:52]}  h6 {[%clk 0:00:29]} 23. Rc6 {[%clk 0:01:43]}  Qg5 {[%clk 0:00:24]} 24. Rc8 {[%clk 0:01:42]}  Rxc8 {[%clk 0:00:21]} 25. Qxc8+ {[%clk 0:01:43]}  Kh7 {[%clk 0:00:21]} 26. Bb8 {[%clk 0:01:42]}  f4 {[%clk 0:00:18]} 27. Bxe5 {[%clk 0:01:38]}  Qxe5 {[%clk 0:00:19]} 28. exf4 {[%clk 0:01:29]}  Qxf4 {[%clk 0:00:20]} 29. g3 {[%clk 0:01:30]}  Qf3 {[%clk 0:00:18]} 30. Qg4 {[%clk 0:01:29]}  Qd3 {[%clk 0:00:16]} 31. Qf5+ {[%clk 0:01:27]}  Kh8 {[%clk 0:00:15]} 32. Kg2 {[%clk 0:01:27]}  Qe2 {[%clk 0:00:11]} 33. a4 {[%clk 0:01:21]}  e3 {[%clk 0:00:12]} 34. Qf8+ {[%clk 0:01:21]}  Kh7 {[%clk 0:00:11]} 35. Qf5+ {[%clk 0:01:22]}  Kh8 {[%clk 0:00:11]} 36. Qf3 {[%clk 0:01:23]} 1-0


[Site "https://www.chess.com"]

[Event "Titled Tuesday Blitz April 05 Late 2022"]
[White "Le Goff, Ronan"]
[Black "Sarkar, Justin"]
[WhiteFideId "612073"]
[BlackFideId "2010011"]
[WhiteElo "2527"]
[BlackElo "2311"]
[Result "1/2-1/2"]
[Round "04"]
[TimeControl "180+1"]
[Date "2022.04.06"]
[WhiteClock "0:01:06"]
[BlackClock "0:00:16"]

1. Nf3 {[%clk 0:02:59]}  d5 {[%clk 0:02:58]} 2. e3 {[%clk 0:02:56]}  Nf6 {[%clk 0:02:50]} 3. c4 {[%clk 0:02:55]}  e6 {[%clk 0:02:45]} 4. b3 {[%clk 0:02:50]}  c5 {[%clk 0:02:37]} 5. Bb2 {[%clk 0:02:48]}  Nc6 {[%clk 0:02:35]} 6. cxd5 {[%clk 0:02:47]}  Nxd5 {[%clk 0:02:31]} 7. Bb5 {[%clk 0:02:45]}  Bd7 {[%clk 0:02:26]} 8. O-O {[%clk 0:02:44]}  a6 {[%clk 0:02:22]} 9. Be2 {[%clk 0:02:42]}  f6 {[%clk 0:02:14]} 10. Nc3 {[%clk 0:02:37]}  Nxc3 {[%clk 0:02:06]} 11. dxc3 {[%clk 0:02:35]}  Be7 {[%clk 0:02:01]} 12. c4 {[%clk 0:02:33]}  O-O {[%clk 0:02:00]} 13. Qc2 {[%clk 0:02:34]}  Qc7 {[%clk 0:01:57]} 14. Rad1 {[%clk 0:02:29]}  Rad8 {[%clk 0:01:52]} 15. Bd3 {[%clk 0:02:27]}  f5 {[%clk 0:01:47]} 16. a3 {[%clk 0:02:24]}  e5 {[%clk 0:01:40]} 17. Be2 {[%clk 0:02:13]}  e4 {[%clk 0:01:37]} 18. Ne1 {[%clk 0:02:12]}  Ne5 {[%clk 0:01:27]} 19. Bxe5 {[%clk 0:02:01]}  Qxe5 {[%clk 0:01:26]} 20. g3 {[%clk 0:02:00]}  Bc6 {[%clk 0:01:10]} 21. Ng2 {[%clk 0:01:58]}  g5 {[%clk 0:01:08]} 22. Rxd8 {[%clk 0:01:58]}  Rxd8 {[%clk 0:01:07]} 23. Rd1 {[%clk 0:01:59]}  Rd6 {[%clk 0:00:57]} 24. h4 {[%clk 0:01:56]}  h6 {[%clk 0:00:51]} 25. Rxd6 {[%clk 0:01:53]}  Qxd6 {[%clk 0:00:48]} 26. Qd1 {[%clk 0:01:48]}  Qxd1+ {[%clk 0:00:46]} 27. Bxd1 {[%clk 0:01:49]}  Bf6 {[%clk 0:00:41]} 28. hxg5 {[%clk 0:01:47]}  hxg5 {[%clk 0:00:41]} 29. Ne1 {[%clk 0:01:47]}  Kf7 {[%clk 0:00:38]} 30. g4 {[%clk 0:01:45]}  Ke6 {[%clk 0:00:34]} 31. gxf5+ {[%clk 0:01:44]}  Kxf5 {[%clk 0:00:34]} 32. Kg2 {[%clk 0:01:44]}  Bb2 {[%clk 0:00:31]} 33. a4 {[%clk 0:01:44]}  Bc3 {[%clk 0:00:28]} 34. Nc2 {[%clk 0:01:40]}  b5 {[%clk 0:00:23]} 35. axb5 {[%clk 0:01:37]}  axb5 {[%clk 0:00:23]} 36. cxb5 {[%clk 0:01:25]}  Bxb5 {[%clk 0:00:23]} 37. Na3 {[%clk 0:01:26]}  Bd3 {[%clk 0:00:23]} 38. Nc4 {[%clk 0:01:23]}  Bxc4 {[%clk 0:00:20]} 39. bxc4 {[%clk 0:01:24]}  Be5 {[%clk 0:00:20]} 40. Kh3 {[%clk 0:01:22]}  Bc3 {[%clk 0:00:18]} 41. Bg4+ {[%clk 0:01:20]}  Ke5 {[%clk 0:00:18]} 42. Bh5 {[%clk 0:01:19]}  Be1 {[%clk 0:00:18]} 43. Kg2 {[%clk 0:01:19]}  Kf5 {[%clk 0:00:17]} 44. Be8 {[%clk 0:01:16]}  Bd2 {[%clk 0:00:16]} 45. Bd7+ {[%clk 0:01:15]}  Ke5 {[%clk 0:00:17]} 46. Kg3 {[%clk 0:01:14]}  Be1 {[%clk 0:00:17]} 47. Bc8 {[%clk 0:01:14]}  Kf6 {[%clk 0:00:16]} 48. Bb7 {[%clk 0:01:12]}  Ke5 {[%clk 0:00:16]} 49. Kg2 {[%clk 0:01:12]}  Kf5 {[%clk 0:00:16]} 50. Kf1 {[%clk 0:01:10]}  Bc3 {[%clk 0:00:16]} 51. Ke2 {[%clk 0:01:10]}  Ke5 {[%clk 0:00:16]} 52. f3 {[%clk 0:01:09]}  exf3+ {[%clk 0:00:16]} 53. Kxf3 {[%clk 0:01:10]}  Bd2 {[%clk 0:00:16]} 54. Bd5 {[%clk 0:01:08]}  g4+ {[%clk 0:00:16]} 55. Kxg4 {[%clk 0:01:06]}  Bxe3 {[%clk 0:00:16]} 1/2-1/2


[Site "https://www.chess.com"]

[Event "Titled Tuesday Blitz April 05 Late 2022"]
[White "Levin, Anthony"]
[Black "Gatterer, Florian"]
[WhiteFideId "30940680"]
[BlackFideId "811688"]
[WhiteElo "2025"]
[BlackElo "2218"]
[Result "1/2-1/2"]
[Round "04"]
[TimeControl "180+1"]
[Date "2022.04.06"]
[WhiteClock "0:00:52"]
[BlackClock "0:00:12"]

1. d4 {[%clk 0:03:00]}  Nf6 {[%clk 0:02:59]} 2. c4 {[%clk 0:03:01]}  g6 {[%clk 0:02:59]} 3. g3 {[%clk 0:03:00]}  Bg7 {[%clk 0:02:57]} 4. Bg2 {[%clk 0:03:00]}  O-O {[%clk 0:02:56]} 5. e4 {[%clk 0:03:01]}  d6 {[%clk 0:02:55]} 6. Nc3 {[%clk 0:03:00]}  c5 {[%clk 0:02:51]} 7. d5 {[%clk 0:02:46]}  e6 {[%clk 0:02:51]} 8. Nge2 {[%clk 0:02:42]}  exd5 {[%clk 0:02:51]} 9. exd5 {[%clk 0:02:39]}  Re8 {[%clk 0:02:47]} 10. O-O {[%clk 0:02:39]}  Bf5 {[%clk 0:02:46]} 11. Bf4 {[%clk 0:02:27]}  Ne4 {[%clk 0:02:31]} 12. Nxe4 {[%clk 0:02:26]}  Bxe4 {[%clk 0:02:31]} 13. Nc3 {[%clk 0:02:24]}  Bxg2 {[%clk 0:02:20]} 14. Kxg2 {[%clk 0:02:24]}  Bxc3 {[%clk 0:02:07]} 15. bxc3 {[%clk 0:02:25]}  Qf6 {[%clk 0:02:06]} 16. Qf3 {[%clk 0:02:20]}  Nd7 {[%clk 0:02:02]} 17. Rab1 {[%clk 0:02:20]}  b6 {[%clk 0:02:01]} 18. a4 {[%clk 0:02:00]}  h6 {[%clk 0:01:20]} 19. h4 {[%clk 0:01:58]}  Kg7 {[%clk 0:01:14]} 20. a5 {[%clk 0:01:48]}  bxa5 {[%clk 0:01:04]} 21. Ra1 {[%clk 0:01:48]}  a4 {[%clk 0:00:59]} 22. Rxa4 {[%clk 0:01:48]}  Nb6 {[%clk 0:00:59]} 23. Ra6 {[%clk 0:01:48]}  Nxc4 {[%clk 0:00:58]} 24. Qd3 {[%clk 0:01:46]}  Ne5 {[%clk 0:00:54]} 25. Bxe5 {[%clk 0:01:38]}  Rxe5 {[%clk 0:00:54]} 26. Rfa1 {[%clk 0:01:34]}  Re7 {[%clk 0:00:54]} 27. c4 {[%clk 0:01:28]}  h5 {[%clk 0:00:53]} 28. Qa3 {[%clk 0:01:25]}  Rb8 {[%clk 0:00:41]} 29. Qf3 {[%clk 0:01:19]}  Qxf3+ {[%clk 0:00:33]} 30. Kxf3 {[%clk 0:01:19]}  Rbb7 {[%clk 0:00:33]} 31. Rxd6 {[%clk 0:01:18]}  Rb4 {[%clk 0:00:30]} 32. Rc1 {[%clk 0:01:14]}  Re5 {[%clk 0:00:23]} 33. Rc6 {[%clk 0:01:10]}  Rf5+ {[%clk 0:00:23]} 34. Kg2 {[%clk 0:01:04]}  Rb2 {[%clk 0:00:19]} 35. Rf1 {[%clk 0:01:04]}  Rf6 {[%clk 0:00:15]} 36. Rxc5 {[%clk 0:01:04]}  Rc2 {[%clk 0:00:15]} 37. Rc7 {[%clk 0:01:00]}  a5 {[%clk 0:00:14]} 38. c5 {[%clk 0:00:57]}  a4 {[%clk 0:00:14]} 39. d6 {[%clk 0:00:57]}  a3 {[%clk 0:00:13]} 40. d7 {[%clk 0:00:52]}  Rd2 {[%clk 0:00:12]} 1/2-1/2


[Site "https://www.chess.com"]

[Event "Titled Tuesday Blitz April 05 Late 2022"]
[White "Maghsoodloo, Parham"]
[Black "Iskusnyh, Sergei"]
[WhiteFideId "12539929"]
[BlackFideId "4120027"]
[WhiteElo "2630"]
[BlackElo "2492"]
[Result "0-1"]
[Round "04"]
[TimeControl "180+1"]
[Date "2022.04.05"]
[WhiteClock "0:00:01"]
[BlackClock "0:00:04"]

1. d4 {[%clk 0:03:00]}  d5 {[%clk 0:02:59]} 2. c4 {[%clk 0:03:00]}  c6 {[%clk 0:02:58]} 3. Nf3 {[%clk 0:02:59]}  Nf6 {[%clk 0:02:57]} 4. e3 {[%clk 0:02:59]}  a6 {[%clk 0:02:52]} 5. Nbd2 {[%clk 0:02:57]}  Bf5 {[%clk 0:02:26]} 6. b3 {[%clk 0:02:55]}  e6 {[%clk 0:02:24]} 7. Bb2 {[%clk 0:02:55]}  Nbd7 {[%clk 0:02:22]} 8. Be2 {[%clk 0:02:55]}  h6 {[%clk 0:02:21]} 9. O-O {[%clk 0:02:55]}  Be7 {[%clk 0:02:21]} 10. a3 {[%clk 0:02:48]}  a5 {[%clk 0:02:17]} 11. c5 {[%clk 0:02:48]}  b6 {[%clk 0:02:10]} 12. b4 {[%clk 0:02:48]}  axb4 {[%clk 0:02:05]} 13. axb4 {[%clk 0:02:48]}  O-O {[%clk 0:01:57]} 14. Qb3 {[%clk 0:02:28]}  Qc7 {[%clk 0:01:35]} 15. Rfc1 {[%clk 0:02:24]}  bxc5 {[%clk 0:01:33]} 16. bxc5 {[%clk 0:02:13]}  Ne4 {[%clk 0:01:23]} 17. Nxe4 {[%clk 0:02:09]}  Bxe4 {[%clk 0:01:23]} 18. Nd2 {[%clk 0:02:07]}  Bg6 {[%clk 0:01:22]} 19. Rxa8 {[%clk 0:02:06]}  Rxa8 {[%clk 0:01:21]} 20. Ra1 {[%clk 0:02:07]}  Rxa1+ {[%clk 0:01:20]} 21. Bxa1 {[%clk 0:02:08]}  Bf6 {[%clk 0:01:13]} 22. f4 {[%clk 0:02:06]}  Nxc5 {[%clk 0:01:09]} 23. Qa3 {[%clk 0:02:04]}  Ne4 {[%clk 0:01:07]} 24. Nxe4 {[%clk 0:02:04]}  Bxe4 {[%clk 0:01:07]} 25. Bc3 {[%clk 0:02:04]}  c5 {[%clk 0:01:01]} 26. dxc5 {[%clk 0:02:00]}  d4 {[%clk 0:00:53]} 27. Bd2 {[%clk 0:01:33]}  Qc6 {[%clk 0:00:45]} 28. Bf1 {[%clk 0:01:28]}  d3 {[%clk 0:00:33]} 29. Qa7 {[%clk 0:00:51]}  g5 {[%clk 0:00:31]} 30. g3 {[%clk 0:00:41]}  Kg7 {[%clk 0:00:24]} 31. Qa5 {[%clk 0:00:33]}  gxf4 {[%clk 0:00:21]} 32. gxf4 {[%clk 0:00:34]}  Qd5 {[%clk 0:00:21]} 33. Qb4 {[%clk 0:00:21]}  e5 {[%clk 0:00:16]} 34. f5 {[%clk 0:00:14]}  Bf3 {[%clk 0:00:10]} 35. Kf2 {[%clk 0:00:07]}  e4 {[%clk 0:00:09]} 36. Bh3 {[%clk 0:00:04]}  Qe5 {[%clk 0:00:08]} 37. Kg1 {[%clk 0:00:04]}  Qa1+ {[%clk 0:00:08]} 38. Be1 {[%clk 0:00:01]}  Qd1 {[%clk 0:00:05]} 39. Qd2 {[%clk 0:00:01]}  Qb1 {[%clk 0:00:04]} 0-1


[Site "https://www.chess.com"]